fUST/lending_fUST_20250711
["ID","MTS","AMOUNT","RATE_DAILY","PERIOD"]
[370927742,1752163854523,-460.0,0.0001726,2]
[370927743,1752163854533,-534.18,0.0001726,2]
[370927744,1752163854543,-460.0,0.0001726,2]
[370927745,1752163854553,-460.0,0.0001726,2]
[370927746,1752163854563,-1157.0,0.0001726,2]
[370927747,1752163854572,-460.0,0.0001726,2]
[370927748,1752163854582,-460.0,0.0001726,2]
[370927749,1752163854591,-460.0,0.0001726,2]
[370927750,1752163854601,-460.0,0.0001726,2]
[370927751,1752163854610,-465.2542019,0.0001726,2]
[370927752,1752163854620,-460.0,0.0001726,2]
[370927753,1752163854630,-460.0,0.0001726,2]
[370927754,1752163854639,-460.0,0.0001726,2]
[370927755,1752163854649,-460.0,0.0001726,2]
[370927756,1752163854658,-460.0,0.0001726,2]
[370927757,1752163854667,-460.0,0.0001726,2]
[370927758,1752163854677,-460.0,0.0001726,2]
[370927759,1752163854687,-460.0,0.0001726,2]
[370927760,1752163854696,-460.0,0.0001726,2]
[370927761,1752163854706,-460.0,0.0001726,2]
[370927762,1752163854716,-460.0,0.0001726,2]
[370927763,1752163854725,-414.6814643,0.0001726,2]
[370927764,1752163854734,-473.38,0.0001726,2]
[370927765,1752163854744,-460.0,0.0001726,2]
[370927766,1752163854754,-460.0,0.0001726,2]
[370927767,1752163854763,-460.0,0.0001726,2]
[370927768,1752163854773,-524.39,0.0001726,2]
[370927769,1752163854786,-460.0,0.0001726,2]
[370927770,1752163854796,-599.58,0.0001726,2]
[370927771,1752163854806,-558.8217057,0.0001726,2]
[370927772,1752163854815,-460.0,0.0001726,2]
[370927773,1752163854826,-460.0,0.0001726,2]
[370927774,1752163854835,-460.0,0.0001726,2]
[370927775,1752163854845,-460.0,0.0001726,2]
[370927776,1752163854854,-460.0,0.0001726,2]
[370927777,1752163854864,-460.0,0.0001726,2]
[370927778,1752163854874,-302.68778321,0.0001726,2]
[370927779,1752163854884,-460.0,0.0001726,2]
[370927780,1752163854894,-460.0,0.0001726,2]
[370927781,1752163854904,-460.0,0.0001726,2]
[370927782,1752163854914,-460.0,0.0001726,2]
[370927783,1752163854924,-1273.06,0.0001726,2]
[370927784,1752163854933,-601.49,0.0001726,2]
[370927785,1752163854943,-460.0,0.0001726,2]
[370927786,1752163854953,-530.55,0.0001726,2]
[370927787,1752163854963,-460.0,0.0001726,2]
[370927788,1752163854973,-460.0,0.0001726,2]
[370927789,1752163854982,-850.19,0.0001726,2]
[370927790,1752163854993,-460.0,0.0001726,2]
[370927791,1752163855003,-5108.69,0.0001726,2]
[370927792,1752163855013,-807.83,0.0001726,2]
[370927793,1752163855023,-460.0,0.0001726,2]
[370927794,1752163855032,-596.62,0.0001726,2]
[370927795,1752163855042,-460.0,0.0001726,2]
[370927796,1752163855051,-460.0,0.0001726,2]
[370927797,1752163855061,-835.96,0.0001726,2]
[370927798,1752163855071,-460.0,0.0001726,2]
[370927799,1752163855081,-2985.79,0.0001726,2]
[370927800,1752163855091,-5546.51,0.0001726,2]
[370927801,1752163855100,-460.0,0.0001726,2]
[370927802,1752163855111,-460.0,0.0001726,2]
[370927803,1752163855121,-4932.67,0.0001726,2]
[370927804,1752163855131,-460.0,0.0001726,2]
[370927805,1752163855140,-2471.67,0.0001726,2]
[370927806,1752163855149,-460.0,0.0001726,2]
[370927807,1752163855158,-460.0,0.0001726,2]
[370927808,1752163855168,-7340.06,0.0001726,2]
[370927809,1752163855178,-460.0,0.0001726,2]
[370927810,1752163855188,-460.0,0.0001726,2]
[370927811,1752163855198,-1154.83,0.0001726,2]
[370927812,1752163855208,-209.00520413,0.0001726,2]
[370927813,1752163855219,-460.0,0.0001726,2]
[370927814,1752163855230,-1442.69,0.0001726,2]
[370927815,1752163855241,-498.97,0.0001726,2]
[370927816,1752163855251,-827.89,0.0001726,2]
[370927817,1752163855261,-560.59,0.0001726,2]
[370927818,1752163855271,-742.8,0.0001726,2]
[370927819,1752163855281,-1680.4,0.0001726,2]
[370927820,1752163855291,-902.95,0.0001726,2]
[370927821,1752163855301,-460.0,0.0001726,2]
[370927822,1752163855310,-460.0,0.0001726,2]
[370927823,1752163855320,-1191.66,0.0001726,2]
[370927824,1752163855330,-460.0,0.0001726,2]
[370927825,1752163855340,-877.76,0.0001726,2]
[370927826,1752163855350,-2454.63,0.0001726,2]
[370927827,1752163855360,-460.0,0.0001726,2]
[370927828,1752163855369,-460.0,0.0001726,2]
[370927829,1752163855379,-460.0,0.0001726,2]
[370927830,1752163855389,-460.0,0.0001726,2]
[370927831,1752163855398,-460.0,0.0001726,2]
[370927832,1752163855408,-460.0,0.0001726,2]
[370927833,1752163855417,-1582.94,0.0001726,2]
[370927834,1752163855427,-460.0,0.0001726,2]
[370927835,1752163855436,-460.0,0.0001726,2]
[370927836,1752163855445,-892.73,0.0001726,2]
[370927837,1752163855455,-460.0,0.0001726,2]
[370927838,1752163855464,-235.33781187,0.0001726,2]
[370927839,1752163855474,-1107.97,0.0001726,2]
[370927840,1752163855484,-1087.41,0.0001726,2]
[370927841,1752163855494,-3198.07,0.0001726,2]
[370927842,1752163855503,-460.0,0.0001726,2]
[370927843,1752163855513,-460.0,0.0001726,2]
[370927844,1752163855523,-543.38,0.0001726,2]
[370927845,1752163855532,-460.0,0.0001726,2]
[370927846,1752163855542,-460.0,0.0001726,2]
[370927847,1752163855553,-4159.47,0.0001726,2]
[370927848,1752163855562,-460.0,0.0001726,2]
[370927849,1752163855573,-460.0,0.0001726,2]
[370927850,1752163855583,-460.0,0.0001726,2]
[370927851,1752163855593,-460.0,0.0001726,2]
[370927852,1752163855603,-460.0,0.0001726,2]
[370927853,1752163855613,-7228.32,0.0001726,2]
[370927854,1752163855623,-460.0,0.0001726,2]
[370927855,1752163855633,-472.94,0.0001726,2]
[370927856,1752163855643,-2373.15,0.0001726,2]
[370927857,1752163855653,-3970.33,0.0001726,2]
[370927858,1752163855662,-484.23,0.0001726,2]
[370927859,1752163855671,-460.0,0.0001726,2]
[370927860,1752163855681,-714.23,0.0001726,2]
[370927861,1752163855691,-460.0,0.0001726,2]
[370927862,1752163855700,-460.0,0.0001726,2]
[370927863,1752163855710,-460.0,0.0001726,2]
[370927864,1752163855719,-1153.4,0.0001726,2]
[370927865,1752163855729,-705.1,0.0001726,2]
[370927866,1752163855738,-1222.8,0.0001726,2]
[370927867,1752163855747,-460.0,0.0001726,2]
[370927868,1752163855757,-907.6,0.0001726,2]
[370927869,1752163855768,-460.0,0.0001726,2]
[370927870,1752163855782,-460.0,0.0001726,2]
[370927871,1752163855793,-460.0,0.0001726,2]
[370927872,1752163855803,-2157.69,0.0001726,2]
[370927873,1752163855812,-460.0,0.0001726,2]
[370927874,1752163855822,-460.0,0.0001726,2]
[370927875,1752163855832,-460.0,0.0001726,2]
[370927876,1752163855843,-460.0,0.0001726,2]
[370927877,1752163855852,-3308.31,0.0001726,2]
[370927878,1752163855863,-460.0,0.0001726,2]
[370927879,1752163855872,-460.0,0.0001726,2]
[370927880,1752163855881,-460.0,0.0001726,2]
[370927881,1752163855891,-2698.23,0.0001726,2]
[370927882,1752163855900,-1109.05,0.0001726,2]
[370927883,1752163855910,-460.0,0.0001726,2]
[370927884,1752163855920,-460.0,0.0001726,2]
[370927885,1752163855929,-460.0,0.0001726,2]
[370927886,1752163855939,-792.04,0.0001726,2]
[370927887,1752163855950,-3387.71,0.0001726,2]
[370927888,1752163855959,-460.0,0.0001726,2]
[370927889,1752163855969,-1958.35,0.0001726,2]
[370927890,1752163855979,-1036.05,0.0001726,2]
[370927891,1752163855988,-750.15,0.0001726,2]
[370927892,1752163855998,-883.25,0.0001726,2]
[370927893,1752163856007,-460.0,0.0001726,2]
[370927894,1752163856017,-460.0,0.0001726,2]
[370927895,1752163856027,-644.42,0.0001726,2]
[370927896,1752163856036,-460.0,0.0001726,2]
[370927897,1752163856046,-460.0,0.0001726,2]
[370927898,1752163856056,-809.8,0.0001726,2]
[370927899,1752163856067,-609.2,0.0001726,2]
[370927900,1752163856076,-1416.66,0.0001726,2]
[370927901,1752163856086,-460.0,0.0001726,2]
[370927902,1752163856095,-460.0,0.0001726,2]
[370927903,1752163856105,-460.0,0.0001726,2]
[370927904,1752163856115,-1262.69,0.0001726,2]
[370927905,1752163856125,-1172.44,0.0001726,2]
[370927906,1752163856134,-1000.0,0.00017321,2]
[370927907,1752163856144,-1000.0,0.00017321,2]
[370927908,1752163856154,-1000.0,0.00017321,2]
[370927909,1752163856164,-500.0,0.00017321,2]
[370927910,1752163856174,-1000.0,0.00017321,2]
[370927911,1752163856183,-500.92668472,0.00017321,2]
[370927912,1752163856193,-166.666667,0.00017372,2]
[370927913,1752163856203,-788.94842285,0.0001746,2]
[370927914,1752163856213,-166.666667,0.00017513,2]
[370927915,1752163856222,-212016.6122,0.00017533,2]
[370927916,1752163856232,-542.58,0.00017534,2]
[370927917,1752163856242,-187.628835,0.00017534,2]
[370927918,1752163856251,-460.0,0.00017534,2]
[370927919,1752163856261,-460.0,0.00017534,2]
[370927920,1752163856271,-207.895896,0.00017534,2]
[370927921,1752163856280,-271.656458,0.00017534,2]
[370927922,1752163856290,-460.0,0.00017534,2]
[370927923,1752163856300,-460.0,0.00017534,2]
[370927924,1752163856310,-460.0,0.00017534,2]
[370927925,1752163856320,-460.0,0.00017534,2]
[370927926,1752163856330,-460.0,0.00017534,2]
[370927927,1752163856339,-223.70923807,0.00017534,2]
[370927928,1752163856349,-466.48323368,0.00017534,2]
[370927929,1752163856359,-301.59441903,0.00017534,2]
[370927930,1752163856368,-460.0,0.00017534,2]
[370927931,1752163856378,-460.0,0.00017534,2]
[370927932,1752163856388,-460.0,0.00017534,2]
[370927933,1752163856398,-460.0,0.00017534,2]
[370927934,1752163856407,-460.0,0.00017534,2]
[370927935,1752163856416,-460.0,0.00017534,2]
[370927936,1752163856426,-460.0,0.00017534,2]
[370927937,1752163856435,-542.63,0.00017534,2]
[370927938,1752163856444,-299.26523168,0.00017534,2]
[370927939,1752163856453,-460.0,0.00017534,2]
[370927940,1752163856462,-460.0,0.00017534,2]
[370927941,1752163856472,-550.76,0.00017534,2]
[370927942,1752163856482,-602.36345761,0.00017534,2]
[370927943,1752163856491,-460.0,0.00017534,2]
[370927944,1752163856501,-460.0,0.00017534,2]
[370927945,1752163856511,-545.71,0.00017534,2]
[370927946,1752163856520,-460.0,0.00017534,2]
[370927947,1752163856530,-460.0,0.00017534,2]
[370927948,1752163856539,-592.61,0.00017534,2]
[370927949,1752163856549,-460.0,0.00017534,2]
[370927950,1752163856559,-460.0,0.00017534,2]
[370927951,1752163856569,-460.0,0.00017534,2]
[370927952,1752163856579,-460.0,0.00017534,2]
[370927953,1752163856589,-460.0,0.00017534,2]
[370927954,1752163856598,-460.0,0.00017534,2]
[370927955,1752163856608,-460.0,0.00017534,2]
[370927956,1752163856617,-591.97,0.00017534,2]
[370927957,1752163856627,-460.0,0.00017534,2]
[370927958,1752163856636,-563.25,0.00017534,2]
[370927959,1752163856646,-483.27,0.00017534,2]
[370927960,1752163856655,-939.57,0.00017534,2]
[370927961,1752163856665,-460.0,0.00017534,2]
[370927962,1752163856674,-460.0,0.00017534,2]
[370927963,1752163856683,-581.59666771,0.00017534,2]
[370927964,1752163856693,-460.0,0.00017534,2]
[370927965,1752163856703,-460.0,0.00017534,2]
[370927966,1752163856712,-460.0,0.00017534,2]
[370927967,1752163856721,-460.0,0.00017534,2]
[370927968,1752163856731,-323.26795465,0.00017534,2]
[370927969,1752163856740,-751.31,0.00017534,2]
[370927970,1752163856750,-932.08,0.00017534,2]
[370927971,1752163856759,-460.0,0.00017534,2]
[370927972,1752163856769,-576.58,0.00017534,2]
[370927973,1752163856778,-1148.05,0.00017534,2]
[370927974,1752163856793,-460.0,0.00017534,2]
[370927975,1752163856803,-460.0,0.00017534,2]
[370927976,1752163856813,-534.18,0.00017534,2]
[370927977,1752163856822,-460.0,0.00017534,2]
[370927978,1752163856832,-460.0,0.00017534,2]
[370927979,1752163856841,-1157.0,0.00017534,2]
[370927980,1752163856851,-460.0,0.00017534,2]
[370927981,1752163856860,-460.0,0.00017534,2]
[370927982,1752163856870,-460.0,0.00017534,2]
[370927983,1752163856879,-460.0,0.00017534,2]
[370927984,1752163856889,-460.0,0.00017534,2]
[370927985,1752163856898,-460.0,0.00017534,2]
[370927986,1752163856908,-460.0,0.00017534,2]
[370927987,1752163856917,-460.0,0.00017534,2]
[370927988,1752163856927,-460.0,0.00017534,2]
[370927989,1752163856937,-460.0,0.00017534,2]
[370927990,1752163856948,-460.0,0.00017534,2]
[370927991,1752163856957,-460.0,0.00017534,2]
[370927992,1752163856967,-460.0,0.00017534,2]
[370927993,1752163856977,-460.0,0.00017534,2]
[370927994,1752163856986,-460.0,0.00017534,2]
[370927995,1752163856996,-460.0,0.00017534,2]
[370927996,1752163857005,-460.0,0.00017534,2]
[370927997,1752163857015,-524.39,0.00017534,2]
[370927998,1752163857025,-498.33,0.00017534,2]
[370927999,1752163857036,-599.58,0.00017534,2]
[370928000,1752163857046,-460.0,0.00017534,2]
[370928001,1752163857056,-460.0,0.00017534,2]
[370928002,1752163857066,-460.0,0.00017534,2]
[370928003,1752163857076,-460.0,0.00017534,2]
[370928004,1752163857085,-460.0,0.00017534,2]
[370928005,1752163857095,-460.0,0.00017534,2]
[370928006,1752163857105,-1273.06,0.00017534,2]
[370928007,1752163857115,-601.49,0.00017534,2]
[370928008,1752163857125,-460.0,0.00017534,2]
[370928009,1752163857135,-530.55,0.00017534,2]
[370928010,1752163857148,-374.99677448,0.00017534,2]
[370928011,1752163857160,-850.19,0.00017534,2]
[370928012,1752163857169,-460.0,0.00017534,2]
[370928013,1752163857179,-5108.69,0.00017534,2]
[370928014,1752163857188,-807.83,0.00017534,2]
[370928015,1752163857197,-460.0,0.00017534,2]
[370928016,1752163857206,-596.62,0.00017534,2]
[370928017,1752163857216,-460.0,0.00017534,2]
[370928018,1752163857226,-460.0,0.00017534,2]
[370928019,1752163857235,-835.96,0.00017534,2]
[370928020,1752163857245,-5546.51,0.00017534,2]
[370928021,1752163857255,-2985.79,0.00017534,2]
[370928022,1752163857264,-460.0,0.00017534,2]
[370928023,1752163857275,-4932.67,0.00017534,2]
[370928024,1752163857284,-2471.67,0.00017534,2]
[370928025,1752163857294,-460.0,0.00017534,2]
[370928026,1752163857304,-460.0,0.00017534,2]
[370928027,1752163857314,-7340.06,0.00017534,2]
[370928028,1752163857324,-460.0,0.00017534,2]
[370928029,1752163857334,-460.0,0.00017534,2]
[370928030,1752163857343,-1154.83,0.00017534,2]
[370928031,1752163857353,-460.0,0.00017534,2]
[370928032,1752163857365,-1442.69,0.00017534,2]
[370928033,1752163857379,-498.97,0.00017534,2]
[370928034,1752163857389,-827.89,0.00017534,2]
[370928035,1752163857399,-560.59,0.00017534,2]
[370928036,1752163857408,-742.8,0.00017534,2]
[370928037,1752163857418,-1680.4,0.00017534,2]
[370928038,1752163857427,-902.95,0.00017534,2]
[370928039,1752163857437,-460.0,0.00017534,2]
[370928040,1752163857447,-460.0,0.00017534,2]
[370928041,1752163857457,-1191.66,0.00017534,2]
[370928042,1752163857466,-877.76,0.00017534,2]
[370928043,1752163857476,-2454.63,0.00017534,2]
[370928044,1752163857486,-460.0,0.00017534,2]
[370928045,1752163857495,-460.0,0.00017534,2]
[370928046,1752163857505,-460.0,0.00017534,2]
[370928047,1752163857514,-460.0,0.00017534,2]
[370928048,1752163857524,-460.0,0.00017534,2]
[370928049,1752163857533,-1582.94,0.00017534,2]
[370928050,1752163857543,-460.0,0.00017534,2]
[370928051,1752163857553,-460.0,0.00017534,2]
[370928052,1752163857562,-892.73,0.00017534,2]
[370928053,1752163857572,-460.0,0.00017534,2]
[370928054,1752163857582,-1107.97,0.00017534,2]
[370928055,1752163857591,-1087.41,0.00017534,2]
[370928056,1752163857601,-3198.07,0.00017534,2]
[370928057,1752163857611,-460.0,0.00017534,2]
[370928058,1752163857621,-460.0,0.00017534,2]
[370928059,1752163857631,-460.0,0.00017534,2]
[370928060,1752163857642,-460.0,0.00017534,2]
[370928061,1752163857651,-4159.47,0.00017534,2]
[370928062,1752163857660,-460.0,0.00017534,2]
[370928063,1752163857670,-543.38,0.00017534,2]
[370928064,1752163857679,-460.0,0.00017534,2]
[370928065,1752163857689,-460.0,0.00017534,2]
[370928066,1752163857698,-460.0,0.00017534,2]
[370928067,1752163857707,-7228.32,0.00017534,2]
[370928068,1752163857718,-472.94,0.00017534,2]
[370928069,1752163857727,-2373.15,0.00017534,2]
[370928070,1752163857736,-3970.33,0.00017534,2]
[370928071,1752163857745,-484.23,0.00017534,2]
[370928072,1752163857755,-714.23,0.00017534,2]
[370928073,1752163857764,-460.0,0.00017534,2]
[370928074,1752163857773,-460.0,0.00017534,2]
[370928075,1752163857919,-1153.4,0.00017534,2]
[370928076,1752163857929,-705.1,0.00017534,2]
[370928077,1752163857939,-1222.8,0.00017534,2]
[370928078,1752163857948,-460.0,0.00017534,2]
[370928079,1752163857958,-907.6,0.00017534,2]
[370928080,1752163857967,-460.0,0.00017534,2]
[370928081,1752163857976,-460.0,0.00017534,2]
[370928082,1752163857986,-460.0,0.00017534,2]
[370928083,1752163857996,-2157.69,0.00017534,2]
[370928084,1752163858005,-460.0,0.00017534,2]
[370928085,1752163858015,-460.0,0.00017534,2]
[370928086,1752163858024,-460.0,0.00017534,2]
[370928087,1752163858033,-3308.31,0.00017534,2]
[370928088,1752163858043,-460.0,0.00017534,2]
[370928089,1752163858054,-460.0,0.00017534,2]
[370928090,1752163858064,-460.0,0.00017534,2]
[370928091,1752163858074,-2698.23,0.00017534,2]
[370928092,1752163858085,-1109.05,0.00017534,2]
[370928093,1752163858095,-460.0,0.00017534,2]
[370928094,1752163858105,-299.69452537,0.00017534,2]
[370928095,1752163858115,-460.0,0.00017534,2]
[370928096,1752163858125,-792.04,0.00017534,2]
[370928097,1752163858135,-3387.71,0.00017534,2]
[370928098,1752163858145,-438.26491176,0.00017534,2]
[370928099,1752163858156,-1958.35,0.00017534,2]
[370928100,1752163858166,-1036.05,0.00017534,2]
[370928101,1752163858176,-750.15,0.00017534,2]
[370928102,1752163858186,-883.25,0.00017534,2]
[370928103,1752163858196,-460.0,0.00017534,2]
[370928104,1752163858206,-460.0,0.00017534,2]
[370928105,1752163858216,-644.42,0.00017534,2]
[370928106,1752163858225,-460.0,0.00017534,2]
[370928107,1752163858235,-526.63457769,0.00017534,2]
[370928108,1752163858244,-809.8,0.00017534,2]
[370928109,1752163858254,-609.2,0.00017534,2]
[370928110,1752163858263,-1416.66,0.00017534,2]
[370928111,1752163858271,-460.0,0.00017534,2]
[370928112,1752163858281,-460.0,0.00017534,2]
[370928113,1752163858292,-1262.69,0.00017534,2]
[370928114,1752163858302,-460.0,0.00017534,2]
[370928115,1752163858312,-1172.44,0.00017534,2]
[370928116,1752163858322,-166.666667,0.00017653,2]
[370928117,1752163858332,-7432.74604452,0.00017708,2]
[370928118,1752163858342,-166.666667,0.00017793,2]
[370928119,1752163858352,-500.0,0.000178,2]
[370928120,1752163858363,-500.0,0.000178,2]
[370928121,1752163858372,-500.0,0.000178,2]
[370928122,1752163858382,-500.0,0.000178,2]
[370928123,1752163858392,-500.0,0.000178,2]
[370928124,1752163858402,-500.0,0.000178,2]
[370928125,1752163858411,-500.0,0.000178,2]
[370928126,1752163858420,-500.0,0.000178,2]
[370928127,1752163858430,-500.0,0.000178,2]
[370928128,1752163858439,-500.0,0.000178,2]
[370928129,1752163858449,-500.0,0.000178,2]
[370928130,1752163858458,-500.0,0.000178,2]
[370928131,1752163858467,-600.0,0.000178,2]
[370928132,1752163858477,-542.58,0.00017808,2]
[370928133,1752163858486,-460.0,0.00017808,2]
[370928134,1752163858496,-460.0,0.00017808,2]
[370928135,1752163858506,-460.0,0.00017808,2]
[370928136,1752163858515,-460.0,0.00017808,2]
[370928137,1752163858524,-460.0,0.00017808,2]
[370928138,1752163858534,-460.0,0.00017808,2]
[370928139,1752163858543,-460.0,0.00017808,2]
[370928140,1752163858552,-460.0,0.00017808,2]
[370928141,1752163858562,-460.0,0.00017808,2]
[370928142,1752163858571,-460.0,0.00017808,2]
[370928143,1752163858580,-460.0,0.00017808,2]
[370928144,1752163858590,-460.0,0.00017808,2]
[370928145,1752163858599,-460.0,0.00017808,2]
[370928146,1752163858609,-460.0,0.00017808,2]
[370928147,1752163858618,-545.71,0.00017808,2]
[370928148,1752163858627,-460.0,0.00017808,2]
[370928149,1752163858637,-460.0,0.00017808,2]
[370928150,1752163858647,-460.0,0.00017808,2]
[370928151,1752163858657,-592.61,0.00017808,2]
[370928152,1752163858667,-460.0,0.00017808,2]
[370928153,1752163858676,-375.48260199,0.00017808,2]
[370928154,1752163858686,-460.0,0.00017808,2]
[370928155,1752163858695,-460.0,0.00017808,2]
[370928156,1752163858705,-591.97,0.00017808,2]
[370928157,1752163858714,-460.0,0.00017808,2]
[370928158,1752163858723,-563.25,0.00017808,2]
[370928159,1752163858733,-483.27,0.00017808,2]
[370928160,1752163858742,-939.57,0.00017808,2]
[370928161,1752163858751,-460.0,0.00017808,2]
[370928162,1752163858760,-460.0,0.00017808,2]
[370928163,1752163858770,-460.0,0.00017808,2]
[370928164,1752163858780,-460.0,0.00017808,2]
[370928165,1752163858792,-751.31,0.00017808,2]
[370928166,1752163858801,-932.08,0.00017808,2]
[370928167,1752163858811,-460.0,0.00017808,2]
[370928168,1752163858820,-576.58,0.00017808,2]
[370928169,1752163858830,-1148.05,0.00017808,2]
[370928170,1752163858839,-460.0,0.00017808,2]
[370928171,1752163858848,-534.18,0.00017808,2]
[370928172,1752163858858,-460.0,0.00017808,2]
[370928173,1752163858869,-288.5984559,0.00017808,2]
[370928174,1752163858879,-1157.0,0.00017808,2]
[370928175,1752163858889,-460.0,0.00017808,2]
[370928176,1752163858898,-460.0,0.00017808,2]
[370928177,1752163858907,-460.0,0.00017808,2]
[370928178,1752163858917,-460.0,0.00017808,2]
[370928179,1752163858927,-460.0,0.00017808,2]
[370928180,1752163858936,-460.0,0.00017808,2]
[370928181,1752163858946,-460.0,0.00017808,2]
[370928182,1752163858956,-460.0,0.00017808,2]
[370928183,1752163858965,-460.0,0.00017808,2]
[370928184,1752163858974,-460.0,0.00017808,2]
[370928185,1752163858984,-460.0,0.00017808,2]
[370928186,1752163858993,-559.36964392,0.00017808,2]
[370928187,1752163859003,-542.93348129,0.00017808,2]
[370928188,1752163859012,-460.0,0.00017808,2]
[370928189,1752163859021,-460.0,0.00017808,2]
[370928190,1752163859030,-460.0,0.00017808,2]
[370928191,1752163859040,-524.39,0.00017808,2]
[370928192,1752163859049,-599.58,0.00017808,2]
[370928193,1752163859060,-460.0,0.00017808,2]
[370928194,1752163859069,-460.0,0.00017808,2]
[370928195,1752163859079,-460.0,0.00017808,2]
[370928196,1752163859088,-467.43372384,0.00017808,2]
[370928197,1752163859097,-460.0,0.00017808,2]
[370928198,1752163859106,-1273.06,0.00017808,2]
[370928199,1752163859116,-601.49,0.00017808,2]
[370928200,1752163859125,-460.0,0.00017808,2]
[370928201,1752163859134,-530.55,0.00017808,2]
[370928202,1752163859143,-850.19,0.00017808,2]
[370928203,1752163859153,-460.0,0.00017808,2]
[370928204,1752163859162,-807.83,0.00017808,2]
[370928205,1752163859171,-5108.69,0.00017808,2]
[370928206,1752163859180,-460.0,0.00017808,2]
[370928207,1752163859190,-596.62,0.00017808,2]
[370928208,1752163859199,-460.0,0.00017808,2]
[370928209,1752163859209,-460.0,0.00017808,2]
[370928210,1752163859219,-835.96,0.00017808,2]
[370928211,1752163859229,-5546.51,0.00017808,2]
[370928212,1752163859238,-2985.79,0.00017808,2]
[370928213,1752163859248,-460.0,0.00017808,2]
[370928214,1752163859257,-4932.67,0.00017808,2]
[370928215,1752163859266,-2471.67,0.00017808,2]
[370928216,1752163859275,-460.0,0.00017808,2]
[370928217,1752163859284,-7340.06,0.00017808,2]
[370928218,1752163859294,-460.0,0.00017808,2]
[370928219,1752163859304,-460.0,0.00017808,2]
[370928220,1752163859314,-1154.83,0.00017808,2]
[370928221,1752163859323,-460.0,0.00017808,2]
[370928222,1752163859333,-1442.69,0.00017808,2]
[370928223,1752163859342,-498.97,0.00017808,2]
[370928224,1752163859352,-827.89,0.00017808,2]
[370928225,1752163859361,-560.59,0.00017808,2]
[370928226,1752163859370,-742.8,0.00017808,2]
[370928227,1752163859380,-1680.4,0.00017808,2]
[370928228,1752163859389,-902.95,0.00017808,2]
[370928229,1752163859398,-460.0,0.00017808,2]
[370928230,1752163859408,-460.0,0.00017808,2]
[370928231,1752163859417,-1191.66,0.00017808,2]
[370928232,1752163859427,-877.76,0.00017808,2]
[370928233,1752163859436,-2454.63,0.00017808,2]
[370928234,1752163859446,-460.0,0.00017808,2]
[370928235,1752163859455,-460.0,0.00017808,2]
[370928236,1752163859466,-460.0,0.00017808,2]
[370928237,1752163859475,-1582.94,0.00017808,2]
[370928238,1752163859484,-460.0,0.00017808,2]
[370928239,1752163859493,-460.0,0.00017808,2]
[370928240,1752163859503,-892.73,0.00017808,2]
[370928241,1752163859512,-460.0,0.00017808,2]